{"text_format":"3","workbook":"xlsx","n_sheets":2,"sheets":["frente","dorso"],"not_rendered":{"defined_names":4},"read":"whole","date_system":"1900"}

{"sheet":"frente","index":0,"n_rows":139,"n_cols":61,"rows_kept":139,"merged":[[0,2,0,18],[0,23,0,39],[0,57,1,57],[1,41,1,42],[2,57,3,57],[3,2,3,18],[3,23,3,39],[4,2,4,18],[4,23,4,39],[4,57,5,57],[5,2,5,18],[5,23,5,39],[7,2,7,18],[7,23,7,39],[7,57,8,57],[8,8,8,12],[8,29,8,33],[9,2,9,4],[9,5,9,16],[9,23,9,25],[9,26,9,37],[10,2,10,14],[10,23,10,35],[11,2,11,9],[11,23,11,30],[12,7,13,7],[12,9,13,9],[12,28,13,28],[12,30,13,30],[13,2,13,6],[13,11,13,16],[13,23,13,27],[13,32,13,37],[15,3,15,6],[15,12,15,14],[15,17,15,18],[15,24,15,27],[15,33,15,35],[15,38,15,39],[17,2,17,15],[17,17,17,18],[17,23,17,36],[17,38,17,39],[18,2,18,7],[18,8,18,14],[18,23,18,28],[19,2,19,15],[19,16,19,18],[19,23,19,36],[19,37,19,39],[20,2,20,7],[20,8,20,14],[20,16,20,18],[20,23,20,28],[20,37,20,39],[21,2,21,4],[21,5,21,16],[21,23,21,25],[21,26,21,37],[24,2,24,3],[24,23,24,24],[25,2,25,18],[25,23,25,39],[26,8,27,8],[26,29,27,29],[27,9,27,15],[27,30,27,36],[28,2,28,3],[28,4,28,18],[28,23,28,24],[28,25,28,39],[29,10,29,18],[29,33,29,39],[30,2,30,18],[30,23,30,39],[31,2,31,18],[31,23,31,39],[32,2,32,3],[32,4,32,18],[32,23,32,24],[32,25,32,39],[33,12,33,18],[33,35,33,39],[34,2,34,18],[34,23,34,39],[35,2,35,18],[35,23,35,39],[36,2,36,3],[36,4,36,18],[36,23,36,24],[36,25,36,39],[37,2,37,7],[37,23,37,28],[38,2,38,3],[38,4,38,18],[38,23,38,24],[38,25,38,39],[40,2,40,3],[40,4,40,18],[40,23,40,24],[40,25,40,39],[48,4,48,8],[48,10,48,16],[48,25,48,29],[48,31,48,37],[49,4,49,8],[49,10,49,16],[49,25,49,29],[49,31,49,37],[54,4,54,8],[54,10,54,16],[54,25,54,29],[54,31,54,37],[55,4,55,8],[55,10,55,16],[55,25,55,29],[55,31,55,37],[59,7,59,11],[59,28,59,32],[60,7,60,11],[60,28,60,32]]}
[null,null,"FORMULARIOS PARA TRANSFERENCIAS INTERLIGAS",{"$nulls":20},"FORMULARIOS PARA TRANSFERENCIAS INTERLIGAS",{"$nulls":16}," ","5 EFECTOS",{"$nulls":11},"Enero",1,2019," ACADEMIA JAVIER MASCHERANO","con","LIGA DEPORTIVA DEL OESTE (JUNÍN)","***JUNIN***"]
[{"$nulls":4},"Transferencia a prueba (003)",{"$nulls":20},"Transferencia a prueba (003)",{"$nulls":14}," ","TAMAÑO HOJA LEGAL",{"$nulls":11},"Febrero",2,2020," ATL. SOC. Y DEP. DE LINCOLN JUVENTUD UNIDA",null,"LIGA DEPORTIVA CENTRAL VEDIA","ATLETICO AMBOS MUNDOS","LIGA DEPORTIVA DEL OESTE (JUNÍN)"]
[{"$nulls":40}," ",{"$nulls":12},"Marzo",3,2021," ATLÉTICO ARGENTINO","sin","LIGA DE FÚTBOL DE GENERAL VILLEGAS","ATLETICO BUENOS AIRES AL PACÍFICO","LIGA DEPORTIVA DEL OESTE (JUNÍN)"]
[null,null,"Liga Amateur de Deportes de Lincoln",{"$nulls":20},"Liga Amateur de Deportes de Lincoln",{"$nulls":16}," ",{"$nulls":12},"Abril",4,2022," ATLÉTICO BAYAUCA",null,"LIGA DE FÚTBOL DEL OESTE (AMÉRICA/RIVADAVIA)","ATLETICO DEFENSA ARGENTINA","LIGA DEPORTIVA DEL OESTE (JUNÍN)"]
[null," ","Afiliada a la A.F.A.  -  Desp. Nº 10.170  - Estrada 1.230 - Lincoln - 6070 ",{"$nulls":20},"Afiliada a la A.F.A.  -  Desp. Nº 10.170  - Estrada 1.230 - Lincoln - 6070 ",{"$nulls":16}," ",{"$nulls":12},"Mayo",5,2023," ATLÉTICO EL LINQUEÑO","con    sin","LIGA TOLDENSE DE FÚTBOL","ATLETICO INDEPENDIENTE ","LIGA DEPORTIVA DEL OESTE (JUNÍN)"]
[null," ","Teléfono fijo 02355 421081 Mail: ligalincoln@gmail.com",{"$nulls":20},"Teléfono fijo 02355 421081 Mail: ligalincoln@gmail.com",{"$nulls":16}," ",{"$nulls":12},"Junio",6,2024," ATLÉTICO INDEPENDIENTE",null,"LIGA DEPORTIVA DE GENERAL ARENALES","ATLETICO MARIANO MORENO","LIGA DEPORTIVA DEL OESTE (JUNÍN)"]
[null," ",{"$nulls":38}," ",{"$nulls":12},"Julio",7,null," ATLÉTICO LAS TOSCAS",null,"LIGA DEPORTIVA DE FÚTBOL (ROJAS)","ATLETICO RIVADAVIA","LIGA DEPORTIVA DEL OESTE (JUNÍN)"]
[null," ","CONVENIO DE TRANSFERENCIAS A PRUEBA art. 13º R.T.I.",{"$nulls":20},"CONVENIO DE TRANSFERENCIAS A PRUEBA art. 13º R.T.I.",{"$nulls":16}," ",{"$nulls":12},"Agosto",8,null," ATLÉTICO PASTEUR Y FERROCARRIL OESTE","con sin","LIGA CASARENSE DE FÚTBOL","ATLETICO RIVER PLATE","LIGA DEPORTIVA DEL OESTE (JUNÍN)"]
[null," ",{"$nulls":19}," "," ",{"$nulls":17}," ",{"$nulls":12},"Septiembre",9,null," ATLÉTICO PINTENSE",null,"LIGA DEPORTIVA DE SALTO","ATLETICO SARMIENTO","LIGA DEPORTIVA DEL OESTE (JUNÍN)"]
[{"$f":"REPT(\"-\",70)","v":"----------------------------------------------------------------------"}," ","Del Club CEDENTE",null,null,{"$f":"IF(AA10=\"\",\"FALTA INDICAR NOMBRE DEL CLUB\",CONCATENATE(A10,U10,V10))","v":"FALTA INDICAR NOMBRE DEL CLUB"},{"$nulls":12},", de la Liga"," ",{"$f":"UPPER(AA10)","v":""},{"$f":"REPT(\"-\",70)","v":"----------------------------------------------------------------------"}," ","Del Club CEDENTE",{"$nulls":15},", de la Liga"," ",{"$nulls":12},"Octubre",10,null," ATLÉTICO ROBERTS",null,"LIGA BRAGADENSE DE FÚTBOL","ATLETICO VILLA BELGRANO","LIGA DEPORTIVA DEL OESTE (JUNÍN)"]
[{"$f":"REPT(\"-\",70)","v":"----------------------------------------------------------------------"}," ",{"$f":"IF(X11=\"\",\"FALTA INDICAR NOMBRE DE LA LIGA\",CONCATENATE(A11,U11,V11))","v":"FALTA INDICAR NOMBRE DE LA LIGA"},{"$nulls":12},",para el Club CESIONARIO",{"$nulls":3}," ",{"$f":"UPPER(X11)","v":""},{"$f":"REPT(\"-\",70)","v":"----------------------------------------------------------------------"}," ",{"$f":"IF(AA10=\"\",\"\",IF(ISNA(VLOOKUP(AA10,BUSCALIGA,2,FALSE)),\"\",VLOOKUP(AA10,BUSCALIGA,2,FALSE)))","v":""},{"$nulls":12},",para el Club CESIONARIO",{"$nulls":3}," ",{"$nulls":12},"Noviembre",11,null," ATLÉTICO Y SOCIAL EL TRIUNFO",null,"LIGA CHIVILCOYANA DE FÚTBOL","JORGE NEWBERY","LIGA DEPORTIVA DEL OESTE (JUNÍN)"]
["----------------------------------------------------------------------"," ",{"$f":"IF(X12=\"\",\"FALTA INDICAR NOMBRE DEL CLUB\",CONCATENATE(A12,U12,V12))","v":"FALTA INDICAR NOMBRE DEL CLUB"},{"$nulls":7},", de la Liga Amateur de Deportes de Lincoln.",{"$nulls":8}," ",{"$f":"UPPER(X12)","v":""},{"$f":"REPT(\"-\",70)","v":"----------------------------------------------------------------------"}," ",{"$nulls":8},", de la Liga Amateur de Deportes de Lincoln.",{"$nulls":8}," ",{"$nulls":12},"Diciembre",12,null," ATLÉTICO Y SOCIAL SAN MARTIN",null,"LIGA DEPORTIVA DE CHACABUCO","ORIGONE FOOT BALL CLUB","LIGA DEPORTIVA DEL OESTE (JUNÍN)"]
[null," ","Condiciones:",null,"Transferencia a Prueba",null,null,{"$f":"AC13","v":"sin"},"CARGO y",{"$f":"AE13","v":"sin"},"OPCIÓN.",{"$nulls":9}," "," "," ","Condiciones:",null,"Transferencia a Prueba",null,null,"sin","CARGO y","sin","OPCIÓN.",{"$nulls":8}," ",{"$nulls":13},13,null," DEPORTIVO SOCIAL DE LINCOLN SAN MIGUEL",null,"LIGA DEPORTIVA DE COLÓN","RIVADAVIA","LIGA DEPORTIVA DEL OESTE (JUNÍN)"]
[null," ",{"$f":"IF(C12=\"\",\"\",IF(OR(H13=\"\",H13=BF5),\"INDIQUE SI ES CON O SIN CARGO\",\"\"))","v":""},{"$nulls":8},{"$f":"IF(C12=\"\",\"\",IF(OR(J13=\"\",J13=BF5),\"INDIQUE SI ES CON O SIN OPCION\",\"\"))","v":""},{"$nulls":8}," "," "," ",{"$f":"IF(X12=\"\",\"\",IF(OR(AC13=\"\",AC13=BF5),\"INDIQUE SI ES CON O SIN CARGO\",\"\"))","v":""},{"$nulls":8},{"$f":"IF(X12=\"\",\"\",IF(OR(AE13=\"\",AE13=BF5),\"INDIQUE SI ES CON O SIN OPCION\",\"\"))","v":""},{"$nulls":7}," ",{"$nulls":13},14,null," DEPORTIVO Y SOCIAL ARENAZA",null,"LIGA MERCEDINA DE FÚTBOL","SOCIAL, CULTURAL Y DEPORTIVO BAIGORRITA","LIGA DEPORTIVA DEL OESTE (JUNÍN)"]
[null," ",{"$nulls":18}," "," "," ",{"$nulls":17}," ",{"$nulls":13},15,null," SOCIAL Y DEPORTIVO GENERAL PINTO",null,"LIGA NUEVEJULIENSE DE FÚTBOL"]
[null," ","En",{"$f":"PROPER(Y16)","v":""},{"$nulls":3},", a los",{"$f":"IF(AD16=\"\",\"\",AD16)","v":""},"días del mes de",null,null,{"$f":"PROPER(AH16)","v":""},null,null,"de",{"$f":"IF(AL16=\"\",\"\",AL16)","v":""},"entre los",null,null," "," "," ","En",{"$nulls":4},", a los",null,"días del mes de",{"$nulls":5},"de",null,"entre los",null," ",{"$nulls":13},16,null," SOCIAL Y DEPORTIVO VILLA FRANCIA",null,"LIGA PEHUAJENSE DE FÚTBOL","***VEDIA***"]
[null," ","Clubes CEDENTE y CESIONARIO,  representados en este acto por sus Presidentes y Secretarios,  Señores:",{"$nulls":17}," "," "," ","Clubes CEDENTE y CESIONARIO,  representados en este acto por sus Presidentes y Secretarios,  Señores:",{"$nulls":16}," ",{"$nulls":13},17,{"$nulls":3},"LIGA TRENQUELAUQUENSE DE FÚTBOL","ANCALU SPORT CLUB","LIGA DEPORTIVA CENTRAL VEDIA"]
[{"$f":"REPT(\"-\",70)","v":"----------------------------------------------------------------------"}," ",{"$f":"IF(X18=\"\",\"\",CONCATENATE(A18,U18,V18))","v":""},{"$nulls":13},"y Señores:",null,null," ",{"$f":"UPPER(X18)","v":""}," "," ",{"$nulls":14},"y Señores:",null,null," ",{"$nulls":13},18,{"$nulls":3},"LIGA VEINTICINQUEÑA DE FÚTBOL","CLUB ATLETICO VEDIA ALUMNI","LIGA DEPORTIVA CENTRAL VEDIA"]
[null," ","(Presidente y Secretario club Cedente)",{"$nulls":5},{"$f":"IF(AD19=\"\",\"\",AD19)","v":""},{"$nulls":11}," "," "," ","(Presidente y Secretario club Cedente)",{"$nulls":5},{"$f":"IF(AA10=\"\",\"\",AA10)","v":""},{"$nulls":10}," ",{"$nulls":13},19,{"$nulls":4},"DEFENSORES DE CHRISTOPHERSEN","LIGA DEPORTIVA CENTRAL VEDIA"]
[{"$f":"REPT(\"-\",70)","v":"----------------------------------------------------------------------"}," ",{"$f":"IF(X20=\"\",\"\",CONCATENATE(A20,U20,V20))","v":""},{"$nulls":13},"y con la conformidad",null,null," ",{"$f":"UPPER(X20)","v":""},{"$f":"REPT(\"-\",70)","v":"----------------------------------------------------------------------"}," ",{"$nulls":14},"y con la conformidad",null,null," ",{"$nulls":13},20,{"$nulls":4},"DEPORTIVO SARMIENTO","LIGA DEPORTIVA CENTRAL VEDIA"]
[null," ","(Presidente y Secretario club Cesionario)",{"$nulls":5},{"$f":"IF(AD21=\"\",\"\",AD21)","v":""},{"$nulls":11}," "," "," ","(Presidente y Secretario club Cesionario)",{"$nulls":5},{"$f":"IF(X12=\"\",\"\",X12)","v":""},{"$nulls":10}," ",{"$nulls":13},21,{"$nulls":4},"DEPORTIVO Y RECREATIVO LEANDRO N. ALEM","LIGA DEPORTIVA CENTRAL VEDIA"]
[{"$f":"REPT(\"-\",70)","v":"----------------------------------------------------------------------"}," ","del jugador,  señor",null,null,{"$f":"IF(AA22=\"\",\"FALTA NOMBRE DEL JUGADOR\",CONCATENATE(A22,U22,V22))","v":"FALTA NOMBRE DEL JUGADOR"},{"$nulls":12},", se ha for-"," ",{"$f":"UPPER(AA22)","v":""},{"$f":"REPT(\"-\",70)","v":"----------------------------------------------------------------------"}," ","del jugador,  señor",{"$nulls":15},", se ha for-"," ",{"$nulls":13},22,null,"………………..",null,null,"FOOT BALL CLUB MATIENZO","LIGA DEPORTIVA CENTRAL VEDIA"]
[null," ","malizado este CONVENIO atento a las siguientes cláusulas:",{"$nulls":18}," "," ","malizado este CONVENIO atento a las siguientes cláusulas:",{"$nulls":16}," ",{"$nulls":13},23,{"$nulls":4},"HURACAN FOOT BALL CLUB","LIGA DEPORTIVA CENTRAL VEDIA"]
[null," ",{"$nulls":19}," "," ",{"$nulls":17}," ",{"$nulls":13},24,{"$nulls":4},"SOCIAL Y DEPORTIVO ALBERDI","LIGA DEPORTIVA CENTRAL VEDIA"]
[null," ","PRIMERA:",null,"El  Club  CEDENTE concede  la  Transferencia a Prueba del  Jugador al Club  CESIONARIO  hasta:",{"$nulls":16}," "," ","PRIMERA:",null,"El  Club  CEDENTE concede  la  Transferencia a Prueba del  Jugador al Club  CESIONARIO  hasta:",{"$nulls":14}," ",{"$nulls":13},25,{"$nulls":4},"SOCIAL Y DEPORTIVO ATLANTA","LIGA DEPORTIVA CENTRAL VEDIA"]
[null," ",{"$f":"IF(X26=\"\",\"\",X26)","v":""},{"$nulls":18}," "," ",{"$nulls":17}," ",{"$nulls":13},26,{"$nulls":4},"SOCIAL Y DEPORTIVO BLAQUIER","LIGA DEPORTIVA CENTRAL VEDIA"]
[null," ",null,"(ART. 7  Punto 7.2,  inc \"a\" y \"b\"  del R.T.I.),",{"$nulls":4},{"$f":"UPPER(AD27)","v":"SIN"},"OPCIÓN a su transferencia definitiva.",{"$nulls":11}," "," ",null,"(ART. 7  Punto 7.2,  inc \"a\" y \"b\"  del R.T.I.),",{"$nulls":4},"sin","OPCIÓN a su transferencia definitiva.",{"$nulls":9}," ",{"$nulls":13},27,{"$nulls":4},"SOCIAL Y DEPORTIVO MARTIN D. YRIGOYEN","LIGA DEPORTIVA CENTRAL VEDIA"]
[null," ",{"$nulls":7},{"$f":"IF(C12=\"\",\"\",IF(OR(I27=\"\",I27=BF5),\"INDIQUE SI ES CON O SIN OPCION\",\"\"))","v":""},{"$nulls":11}," "," ",{"$nulls":7},{"$f":"IF(X12=\"\",\"\",IF(OR(AD27=\"\",AD27=BF5),\"INDIQUE SI ES CON O SIN OPCION\",\"\"))","v":""},{"$nulls":9}," ",{"$nulls":13},28,{"$nulls":4},"SOCIAL Y DEPORTIVO RIVER PLATE","LIGA DEPORTIVA CENTRAL VEDIA"]
[null," ","SEGUNDA:",null,"El Club CESIONARIO  se compromete a abonar al  Club CEDENTE, por la Transferencia a Prueba, la suma de",{"$nulls":16}," "," ","SEGUNDA:",null,"El Club CESIONARIO  se compromete a abonar al  Club CEDENTE, por la Transferencia a Prueba, la su-",{"$nulls":14}," ",{"$nulls":13},29,{"$nulls":4},"SOCIAL Y DEPORTIVO SARMIENTO","LIGA DEPORTIVA CENTRAL VEDIA"]
[null," ","(Indicar tipo de moneda, monto, forma y fechas de pago)---------------",{"$nulls":7},"---------------------------------------------------------------------------------------",{"$nulls":10}," "," ","ma de:    (Indicar tipo de moneda, monto, forma y fechas de pago)",{"$nulls":9},"----------------------------------------------------------",{"$nulls":6}," ",{"$nulls":13},30,{"$nulls":4},"SOCIAL Y DEPORTIVO UNION","LIGA DEPORTIVA CENTRAL VEDIA"]
[null," ","------------------------------------------------------------------------------------------------------------------------------------------------------------------------------------------",{"$nulls":18}," ",null,"------------------------------------------------------------------------------------------------------------------------------------------------------------------------------------------",{"$nulls":16}," ",{"$nulls":13},31]
[null," ","------------------------------------------------------------------------------------------------------------------------------------------------------------------------------------------------------",{"$nulls":18}," ",null,"------------------------------------------------------------------------------------------------------------------------------------------------------------------------------------------------------",{"$nulls":16}," ",{"$nulls":18},"***VILLEGAS***"]
[null," ","TERCERA:",null,"Si el Club CESIONARIO optara por la Transferencia Definitiva se compromete a abonar al Club  CEDENTE la",{"$nulls":16}," ",null,"TERCERA:",null,"Si el Club CESIONARIO optara por la Transferencia Definitiva se compromete a abonar al Club  CEDEN-",{"$nulls":14}," ",{"$nulls":18},"ATLETICO AMEGHINO","LIGA DE FÚTBOL DE GENERAL VILLEGAS"]
[null," ","suma de:  (Indicar tipo de moneda,  monto,  forma y fechas de pago)-----------------------",{"$nulls":9},"----------------------------------------------------------------------------------",{"$nulls":8}," ",null,"TE la suma de:  (Indicar tipo de moneda,  monto,  forma y fechas de pago)",{"$nulls":11},"---------------------------------------------------",{"$nulls":4}," ",{"$nulls":18},"ATLETICO CHARLONE","LIGA DE FÚTBOL DE GENERAL VILLEGAS"]
[null," ","-----------------------------------------------------------------------------------------------------------------------------------------------------------------------------------------",{"$nulls":18}," ",null,"-----------------------------------------------------------------------------------------------------------------------------------------------------------------------------------------",{"$nulls":16}," ",{"$nulls":18},"ATLETICO JUVENTUD UNIDA","LIGA DE FÚTBOL DE GENERAL VILLEGAS"]
[null," ","------------------------------------------------------------------------------------------------------------------------------------------------------------------------------------------------------",{"$nulls":18}," ",null,"------------------------------------------------------------------------------------------------------------------------------------------------------------------------------------------------------",{"$nulls":16}," ",{"$nulls":18},"ATLETICO SOCIAL CAÑADIENSE","LIGA DE FÚTBOL DE GENERAL VILLEGAS"]
[null," ","CUARTA:",null,"Toda otra cláusula pactada debera hacerse constar al dorso del presente formulario, en el rubro destinado",{"$nulls":18},"CUARTA:",null,"Toda otra cláusula pactada debera hacerse constar al dorso del presente formulario, en el rubro desti-",{"$nulls":14}," ",{"$nulls":18},"ATLETICO VILLEGAS","LIGA DE FÚTBOL DE GENERAL VILLEGAS"]
[null," "," \"CLÁUSULAS ANEXAS\".",{"$nulls":20},"nado  \"CLÁUSULAS ANEXAS\".",{"$nulls":16}," ",{"$nulls":18},"ATLETICO Y SOCIAL CAÑADA SECA","LIGA DE FÚTBOL DE GENERAL VILLEGAS"]
[null," ","QUINTA:",null,"La transferencia a  Prueba del mencionado jugador se realiza con estricta sujeción a las disposiciones regla-",{"$nulls":18},"QUINTA:",null,"La transferencia a  Prueba del mencionado jugador se realiza con estricta sujeción a las disposiciones regla-",{"$nulls":14}," ",{"$nulls":18},"CENTRO EMPLEADOS DE COMERCIO","LIGA DE FÚTBOL DE GENERAL VILLEGAS"]
[null," ","mentarias vigentes y que los dos Clubes y el Jugador declaran conocer y aceptar.",{"$nulls":20},"mentarias vigentes y que los dos Clubes y el Jugador declaran conocer y aceptar.",{"$nulls":16}," ",{"$nulls":18},"CIRCULO ITALIANO DEPORTIVO Y RECREATIVO","LIGA DE FÚTBOL DE GENERAL VILLEGAS"]
[null," ","SEXTA:",null,"En prueba de conformidad se firman CINCO  (5) ejemplares en un mismo tenor y al mismo efecto, correspon-",{"$nulls":18},"SEXTA:",null,"En prueba de conformidad se firman CINCO  (5) ejemplares en un mismo tenor y al mismo efecto, co-",{"$nulls":14}," ",{"$nulls":18},"DEPORTIVO Y SOCIAL INGENIERO WHITE","LIGA DE FÚTBOL DE GENERAL VILLEGAS"]
[null," ","diendo uno a cada Club, uno al Jugador y uno a cada Liga.",{"$nulls":20},"rrespondiendo uno a cada Club, uno al Jugador y uno a cada Liga.",{"$nulls":16}," ",{"$nulls":18},"ECLIPSE","LIGA DE FÚTBOL DE GENERAL VILLEGAS"]
[null," ",{"$nulls":38}," ",{"$nulls":18},"FÚTBOL CLUB BUNGE","LIGA DE FÚTBOL DE GENERAL VILLEGAS"]
[null," ",{"$nulls":38}," ",{"$nulls":18},"LARROUDE FÚTBOL CLUB","LIGA DE FÚTBOL DE GENERAL VILLEGAS"]
[null," ",{"$nulls":38}," ",{"$nulls":18},"SOCIAL COSMOPOLITA RECREATIVA Y SPORTIVA","LIGA DE FÚTBOL DE GENERAL VILLEGAS"]
[null," ",{"$nulls":38}," ",{"$nulls":18},"SOCIAL Y DEPORTIVO SARMIENTO","LIGA DE FÚTBOL DE GENERAL VILLEGAS"]
[null," ",{"$nulls":38}," ",{"$nulls":18},"SOCIAL, CULTURAL Y DEPORTIVO SANTA RITA","LIGA DE FÚTBOL DE GENERAL VILLEGAS"]
[{"$nulls":40}," ",{"$nulls":18},"SPORTIVO VILLEGAS","LIGA DE FÚTBOL DE GENERAL VILLEGAS"]
[{"$nulls":4},"Presidente del Club Cedente",{"$nulls":5},"Presidente del Club Cesionario",{"$nulls":14},"Presidente del Club Cedente",{"$nulls":5},"Presidente del Club Cesionario",{"$nulls":8}," ",{"$nulls":18},"VILLA REGINA","LIGA DE FÚTBOL DE GENERAL VILLEGAS"]
[{"$nulls":4},{"$f":"UPPER(Z50)","v":""},{"$nulls":5},{"$f":"UPPER(AF50)","v":""},{"$nulls":14},{"$f":"IF(AA10=\"\",\"\",AA10)","v":""},{"$nulls":5},{"$f":"IF(X12=\"\",\"\",X12)","v":""},{"$nulls":8}," "]
[{"$nulls":40}," ",{"$nulls":18},"***AMERICA***"]
[{"$nulls":40}," ",{"$nulls":18},"ARGENTINO","LIGA DE FÚTBOL DEL OESTE (AMÉRICA/RIVADAVIA)"]
[{"$nulls":40}," ",{"$nulls":18},"ATLETICO AMIGOS DE GORRA DE CUERO","LIGA DE FÚTBOL DEL OESTE (AMÉRICA/RIVADAVIA)"]
[{"$nulls":40}," ",{"$nulls":18},"ATLETICO BARRIO NORTE","LIGA DE FÚTBOL DEL OESTE (AMÉRICA/RIVADAVIA)"]
[{"$nulls":4},"Secretario del Club Cedente",{"$nulls":5},"Secretario del Club Cesionario",{"$nulls":14},"Secretario del Club Cedente",{"$nulls":5},"Secretario del Club Cesionario",{"$nulls":8}," ",{"$nulls":18},"ATLETICO RIVADAVIA","LIGA DE FÚTBOL DEL OESTE (AMÉRICA/RIVADAVIA)"]
[{"$nulls":4},{"$f":"UPPER(Z50)","v":""},{"$nulls":5},{"$f":"UPPER(AF50)","v":""},{"$nulls":14},{"$f":"IF(AA10=\"\",\"\",AA10)","v":""},{"$nulls":5},{"$f":"IF(X12=\"\",\"\",X12)","v":""},{"$nulls":8}," ",{"$nulls":18},"DEPORTIVO Y SOCIAL LOS ONCE","LIGA DE FÚTBOL DEL OESTE (AMÉRICA/RIVADAVIA)"]
[{"$nulls":40}," ",{"$nulls":18},"ESCUELA DE FÚTBOL PATITA SANCHEZ","LIGA DE FÚTBOL DEL OESTE (AMÉRICA/RIVADAVIA)"]
[{"$nulls":40}," ",{"$nulls":18},"FÚTBOL CLUB TRES ALGARROBOS","LIGA DE FÚTBOL DEL OESTE (AMÉRICA/RIVADAVIA)"]
[{"$nulls":40}," ",{"$nulls":18},"INDEPENDIENTE FOOT BALL CLUB","LIGA DE FÚTBOL DEL OESTE (AMÉRICA/RIVADAVIA)"]
[{"$nulls":40}," ",{"$nulls":18},"RACING FOOT BALL CLUB","LIGA DE FÚTBOL DEL OESTE (AMÉRICA/RIVADAVIA)"]
[{"$nulls":7},"Firma del Jugador",{"$nulls":20},"Firma del Jugador",{"$nulls":11}," ",{"$nulls":18},"ROOSEVELT","LIGA DE FÚTBOL DEL OESTE (AMÉRICA/RIVADAVIA)"]
[{"$nulls":40}," ",{"$nulls":18},"SANSINENA FÚTBOL CLUB","LIGA DE FÚTBOL DEL OESTE (AMÉRICA/RIVADAVIA)"]
[{"$nulls":59},"SOCIAL Y ATLETICO JORGE NEWBERY","LIGA DE FÚTBOL DEL OESTE (AMÉRICA/RIVADAVIA)"]
[{"$nulls":59},"SOCIAL Y DEPORTIVO GONZALEZ MORENO","LIGA DE FÚTBOL DEL OESTE (AMÉRICA/RIVADAVIA)"]
[{"$nulls":59},"SOCIAL Y DEPORTIVO INDEPENDIENTE FÚTBOL CLUB","LIGA DE FÚTBOL DEL OESTE (AMÉRICA/RIVADAVIA)"]
[{"$nulls":59},"SOCIAL Y DEPORTIVO TRES ALGARROBOS","LIGA DE FÚTBOL DEL OESTE (AMÉRICA/RIVADAVIA)"]
[]
[{"$nulls":59},"***LOS TOLDOS***"]
[{"$nulls":59},"ATLETICO BELGRANO","LIGA TOLDENSE DE FÚTBOL"]
[{"$nulls":59},"ATLETICO DEFENSORES DE BELGRANO","LIGA TOLDENSE DE FÚTBOL"]
[{"$nulls":59},"ATLETICO IGNACIO COLIQUEO","LIGA TOLDENSE DE FÚTBOL"]
[{"$nulls":59},"ATLETICO JUAN EL BUENO","LIGA TOLDENSE DE FÚTBOL"]
[{"$nulls":59},"ATLETICO LA DELFINA","LIGA TOLDENSE DE FÚTBOL"]
[{"$nulls":59},"ATLETICO RIVER PLATE","LIGA TOLDENSE DE FÚTBOL"]
[{"$nulls":59},"CENTRO DE EDUCACIÓN FISICA Nº 94","LIGA TOLDENSE DE FÚTBOL"]
[{"$nulls":59},"JUVENTUD ALSINA","LIGA TOLDENSE DE FÚTBOL"]
[{"$nulls":59},"SPORTIVO ZAVALÍA","LIGA TOLDENSE DE FÚTBOL"]
[{"$nulls":59},"VIAMONTE FÚTBOL CLUB","LIGA TOLDENSE DE FÚTBOL"]
[]
[{"$nulls":59},"***ARENALES***"]
[{"$nulls":59},"AGUSTINA FÚTBOL CLUB","LIGA DEPORTIVA DE GENERAL ARENALES"]
[{"$nulls":59},"ARENALES FOOT BALL CLUB","LIGA DEPORTIVA DE GENERAL ARENALES"]
[{"$nulls":59},"ASOC. CULTURAL Y DEP. HURACAN FOOT BAAL CLUB ","LIGA DEPORTIVA DE GENERAL ARENALES"]
[{"$nulls":59},"ATLETICO FORTIN TIBURCIO","LIGA DEPORTIVA DE GENERAL ARENALES"]
[{"$nulls":59},"ATLETICO ONCE ESTRELLAS","LIGA DEPORTIVA DE GENERAL ARENALES"]
[{"$nulls":59},"COLONIAL FERRÉ","LIGA DEPORTIVA DE GENERAL ARENALES"]
[{"$nulls":59},"ESCUELA AGROTÉCNICA SALESIANA LA TRINIDAD","LIGA DEPORTIVA DE GENERAL ARENALES"]
[{"$nulls":59},"LA PINTA FOOT BALL CLUB","LIGA DEPORTIVA DE GENERAL ARENALES"]
[{"$nulls":59},"LOS DIABLOS ROJOS SOCIAL Y DEPORTIVO","LIGA DEPORTIVA DE GENERAL ARENALES"]
[{"$nulls":59},"SINGLAR CLUB SOCIAL Y DEPORTIVO","LIGA DEPORTIVA DE GENERAL ARENALES"]
[{"$nulls":59},"SOCIAL Y DEPORTIVO 12 DE OCTUBRE","LIGA DEPORTIVA DE GENERAL ARENALES"]
[{"$nulls":59},"SOCIAL Y DEPORTIVO ASCENSION","LIGA DEPORTIVA DE GENERAL ARENALES"]
[{"$nulls":59},"SOCIAL Y DEPORTIVO BELGRANO","LIGA DEPORTIVA DE GENERAL ARENALES"]
[]
[{"$nulls":59},"***ROJAS***"]
[{"$nulls":59},"ATLETICO ARGENTINO","LIGA DEPORTIVA DE FÚTBOL (ROJAS)"]
[{"$nulls":59},"ATLETICO BOCA JUNIORS","LIGA DEPORTIVA DE FÚTBOL (ROJAS)"]
[{"$nulls":59},"ATLETICO EL HURACAN","LIGA DEPORTIVA DE FÚTBOL (ROJAS)"]
[{"$nulls":59},"ATLETICO JORGE NEWBERY","LIGA DEPORTIVA DE FÚTBOL (ROJAS)"]
[{"$nulls":59},"ATLETICO JUVENTUD","LIGA DEPORTIVA DE FÚTBOL (ROJAS)"]
[{"$nulls":59},"ATLETICO SAN JOSE","LIGA DEPORTIVA DE FÚTBOL (ROJAS)"]
[{"$nulls":59},"CARABELAS","LIGA DEPORTIVA DE FÚTBOL (ROJAS)"]
[{"$nulls":59},"DEPORTIVO UNIÓN","LIGA DEPORTIVA DE FÚTBOL (ROJAS)"]
[]
[{"$nulls":59},"***CARLOS CASARES***"]
[{"$nulls":59},"ATLETICO AGROPECUARIO ARGENTINO","LIGA CASARENSE DE FÚTBOL"]
[{"$nulls":59},"ATLETICO ARGENTINA 78","LIGA CASARENSE DE FÚTBOL"]
[{"$nulls":59},"ATLETICO BOCA CARLOS CASARES","LIGA CASARENSE DE FÚTBOL"]
[{"$nulls":59},"ATLETICO DE CARLOS CASARES","LIGA CASARENSE DE FÚTBOL"]
[{"$nulls":59},"ATLETICO DE MOCTEZUMA","LIGA CASARENSE DE FÚTBOL"]
[{"$nulls":59},"ATLETICO DEFENSORES DE CADRET","LIGA CASARENSE DE FÚTBOL"]
[{"$nulls":59},"ATLETICO SMITH","LIGA CASARENSE DE FÚTBOL"]
[{"$nulls":59},"DEPORTIVO CASARES","LIGA CASARENSE DE FÚTBOL"]
[{"$nulls":59},"SOCIAL Y DEPORTIVO BELLOCQ","LIGA CASARENSE DE FÚTBOL"]
[]
[{"$nulls":59},"***PEHUAJO***"]
[{"$nulls":59},"ATLETICO BOCA JUNIOR","LIGA PEHUAJENSE DE FÚTBOL"]
[{"$nulls":59},"ATLETICO CALAVERAS","LIGA PEHUAJENSE DE FÚTBOL"]
[{"$nulls":59},"ATLETICO DEFENSORES DEL ESTE","LIGA PEHUAJENSE DE FÚTBOL"]
[{"$nulls":59},"ATLETICO EMPLEADOS DE COMERCIO","LIGA PEHUAJENSE DE FÚTBOL"]
[{"$nulls":59},"ATLETICO ESTUDIANTES UNIDOS","LIGA PEHUAJENSE DE FÚTBOL"]
[{"$nulls":59},"ATLETICO GENERAL SAN MARTIN","LIGA PEHUAJENSE DE FÚTBOL"]
[{"$nulls":59},"ATLETICO INDEPENDIENTE","LIGA PEHUAJENSE DE FÚTBOL"]
[{"$nulls":59},"ATLETICO JUVENTUD UNIDA","LIGA PEHUAJENSE DE FÚTBOL"]
[{"$nulls":59},"ATLETICO K.D.T.","LIGA PEHUAJENSE DE FÚTBOL"]
[{"$nulls":59},"ATLETICO MADERENSE","LIGA PEHUAJENSE DE FÚTBOL"]
[{"$nulls":59},"ATLETICO MONES CAZON","LIGA PEHUAJENSE DE FÚTBOL"]
[{"$nulls":59},"ATLETICO PEHUAJÓ","LIGA PEHUAJENSE DE FÚTBOL"]
[{"$nulls":59},"ATLETICO URDAMPILLETA","LIGA PEHUAJENSE DE FÚTBOL"]
[{"$nulls":59},"BALOMPIE FUTBOL CLUB","LIGA PEHUAJENSE DE FÚTBOL"]
[{"$nulls":59},"BANCARIOS","LIGA PEHUAJENSE DE FÚTBOL"]
[{"$nulls":59},"BULL DOG","LIGA PEHUAJENSE DE FÚTBOL"]
[{"$nulls":59},"DEPORTIVO ARGENTINO","LIGA PEHUAJENSE DE FÚTBOL"]
[{"$nulls":59},"FUTBOL CLUB HENDERSON","LIGA PEHUAJENSE DE FÚTBOL"]
[{"$nulls":59},"SOCIAL Y DEPORTIVO INDEPENDIENTE","LIGA PEHUAJENSE DE FÚTBOL"]
[{"$nulls":59},"SOCIAL Y DEPORTIVO PROGRESO","LIGA PEHUAJENSE DE FÚTBOL"]
[{"$nulls":59},"SOCIAL Y DEPORTIVO UNION","LIGA PEHUAJENSE DE FÚTBOL"]
[{"$nulls":59},"SOCIAL Y DEPORTIVO UNZUÉ","LIGA PEHUAJENSE DE FÚTBOL"]
[{"$nulls":59},"HURACAN FÚTBOL CLUB","LIGA PEHUAJENSE DE FÚTBOL"]

{"sheet":"dorso","index":1,"n_rows":52,"n_cols":15,"rows_kept":52,"merged":[[0,1,0,17],[1,1,1,17],[2,1,2,17],[3,1,3,17],[4,1,4,17],[5,1,5,17],[6,1,6,17],[7,1,7,17],[8,1,8,17],[9,1,9,17],[10,1,10,17],[11,1,11,17],[12,1,12,17],[13,1,13,17],[14,1,14,17],[15,1,15,17],[16,1,16,17],[26,3,26,7],[26,9,26,15],[27,3,27,7],[27,9,27,15],[32,3,32,7],[32,9,32,15],[33,3,33,7],[33,9,33,15],[38,7,38,9],[48,3,48,7],[48,9,48,15],[51,3,51,7],[51,9,51,15],[59,7,59,9]]}
[null,"FORMULARIOS PARA TRANSFERENCIAS INTERLIGAS"]
[null,"CLAUSULAS ANEXAS"]
{"$rows_empty":16}
[null,null,"Nota:","    I - Los espacios en blanco deberán ser cruzados."]
[null,null,"    II - A los fines de tener validez lo pactado en estas \"Cláusulas Anexas\" deberán firmar al pié y en"]
[null,null,"    prueba de conformidad los mismos firmantes del Anverso."]
[]
[]
[]
[]
[]
[{"$nulls":3},"Firma Presidente del Club Cedente",{"$nulls":5},"Firma Presidente del Club Cesionario"]
[{"$nulls":3},{"$f":"IF(frente!AA10=\"\",\"\",frente!AA10)","v":""},{"$nulls":5},{"$f":"IF(frente!X12=\"\",\"\",frente!X12)","v":""}]
[]
[]
[]
[]
[{"$nulls":3},"Firma Secretario del Club Cedente",{"$nulls":5},"Firma Secretario del Club Cesionario"]
[{"$nulls":3},{"$f":"IF(frente!AA10=\"\",\"\",frente!AA10)","v":""},{"$nulls":5},{"$f":"IF(frente!X12=\"\",\"\",frente!X12)","v":""}]
[]
[]
[]
[]
[{"$nulls":7},"Jugador"]
[]
[]
[{"$nulls":3},"Recibo por la Liga del Club CESIONARIO para ser remitido a su similar Club CEDENTE"]
[{"$nulls":3},"(art. 13º, inc. D, del R.T.I.):"]
[]
[{"$nulls":4},"Fecha:",null,"/","/",{"$nulls":6},"Hora:"]
[]
[{"$nulls":9},"(Sello de la Liga)"]
[]
[]
[]
[]
[{"$nulls":3},"Secretario del Club Cedente",{"$nulls":5},"Secretario del Club Cesionario"]